fUST/lending_fUST_20250514
["ID","MTS","AMOUNT","RATE_DAILY","PERIOD"]
[361023660,1747209038459,-187.5026374,0.00014794,2]
[361023662,1747209038469,-560.27,0.00014794,2]
[361023664,1747209038478,-400.0,0.00014794,2]
[361023666,1747209038488,-482.29,0.00014794,2]
[361023668,1747209038498,-400.0,0.00014794,2]
[361023670,1747209038509,-400.0,0.00014794,2]
[361023672,1747209038519,-434.97,0.00014794,2]
[361023674,1747209038529,-400.0,0.00014794,2]
[361023676,1747209038538,-400.0,0.00014794,2]
[361023679,1747209038548,-431.43,0.00014794,2]
[361023681,1747209038557,-486.32,0.00014794,2]
[361023682,1747209038567,-400.0,0.00014794,2]
[361023684,1747209038576,-2451.01,0.00014794,2]
[361023685,1747209038591,-1141.97,0.00014794,2]
[361023687,1747209038600,-400.0,0.00014794,2]
[361023689,1747209038610,-400.0,0.00014794,2]
[361023691,1747209038619,-400.0,0.00014794,2]
[361023693,1747209038629,-590.5,0.00014794,2]
[361023695,1747209038638,-400.0,0.00014794,2]
[361023697,1747209038648,-400.0,0.00014794,2]
[361023699,1747209038658,-459.0,0.00014794,2]
[361023701,1747209038667,-400.0,0.00014794,2]
[361023703,1747209038676,-524.61328664,0.00014828,2]
[361023705,1747209038686,-210.319677,0.00014998,2]
[361023707,1747209038696,-210.319677,0.00014998,2]
[361023709,1747209038705,-346.24,0.00015,3]
[361023711,1747209038714,-151.0,0.00015,2]
[361023714,1747209038725,-151.0,0.00015,2]
[361023716,1747209038734,-160.0,0.00015051,2]
[361023717,1747209038744,-160.0,0.00015051,2]
[361023720,1747209038754,-212.21045333,0.00015051,2]
[361023724,1747209038764,-160.0,0.00015051,2]
[361023726,1747209038774,-160.0,0.00015051,2]
[361023728,1747209038784,-160.0,0.00015051,2]
[361023730,1747209038793,-12627.42419379,0.00015051,2]
[361023732,1747209038803,-160.0,0.00015051,2]
[361023734,1747209038813,-997.9747837,0.00015051,2]
[361023736,1747209038822,-160.0,0.00015051,2]
[361023738,1747209038832,-422.27619506,0.00015051,2]
[361023740,1747209038841,-160.0,0.00015051,2]
[361023742,1747209038851,-160.0,0.00015051,2]
[361023744,1747209038860,-160.0,0.00015051,2]
[361023746,1747209038870,-160.0,0.00015067,2]
[361023748,1747209038880,-210.319677,0.00015068,2]
[361023750,1747209038890,-210.319685,0.00015068,2]
[361023752,1747209038900,-400.0,0.00015068,2]
[361023754,1747209038909,-400.0,0.00015068,2]
[361023756,1747209038919,-400.0,0.00015068,2]
[361023758,1747209038928,-400.0,0.00015068,2]
[361023760,1747209038938,-400.0,0.00015068,2]
[361023762,1747209038947,-400.0,0.00015068,2]
[361023764,1747209038957,-400.0,0.00015068,2]
[361023766,1747209038966,-400.0,0.00015068,2]
[361023768,1747209038975,-400.0,0.00015068,2]
[361023770,1747209038985,-400.0,0.00015068,2]
[361023773,1747209038995,-400.0,0.00015068,2]
[361023775,1747209039005,-400.0,0.00015068,2]
[361023777,1747209039014,-3957.16,0.00015068,2]
[361023779,1747209039024,-400.0,0.00015068,2]
[361023781,1747209039033,-486.97,0.00015068,2]
[361023783,1747209039042,-2072.03,0.00015068,2]
[361023785,1747209039051,-927.72,0.00015068,2]
[361023787,1747209039061,-800.94,0.00015068,2]
[361023789,1747209039070,-400.0,0.00015068,2]
[361023791,1747209039079,-400.0,0.00015068,2]
[361023793,1747209039088,-400.0,0.00015068,2]
[361023795,1747209039097,-400.0,0.00015068,2]
[361023797,1747209039107,-400.0,0.00015068,2]
[361023799,1747209039116,-400.0,0.00015068,2]
[361023801,1747209039126,-400.0,0.00015068,2]
[361023803,1747209039134,-400.0,0.00015068,2]
[361023805,1747209039144,-562.84,0.00015068,2]
[361023807,1747209039153,-400.0,0.00015068,2]
[361023809,1747209039162,-400.0,0.00015068,2]
[361023811,1747209039172,-1114.07,0.00015068,2]
[361023813,1747209039181,-400.0,0.00015068,2]
[361023815,1747209039190,-400.0,0.00015068,2]
[361023817,1747209039199,-400.0,0.00015068,2]
[361023819,1747209039208,-400.0,0.00015068,2]
[361023821,1747209039218,-3312.91,0.00015068,2]
[361023823,1747209039227,-400.0,0.00015068,2]
[361023825,1747209039236,-400.0,0.00015068,2]
[361023827,1747209039245,-560.27,0.00015068,2]
[361023829,1747209039255,-400.0,0.00015068,2]
[361023831,1747209039264,-482.29,0.00015068,2]
[361023832,1747209039274,-400.0,0.00015068,2]
[361023834,1747209039283,-400.0,0.00015068,2]
[361023837,1747209039293,-434.97,0.00015068,2]
[361023838,1747209039303,-400.0,0.00015068,2]
[361023840,1747209039312,-400.0,0.00015068,2]
[361023842,1747209039322,-431.43,0.00015068,2]
[361023845,1747209039334,-486.32,0.00015068,2]
[361023847,1747209039344,-400.0,0.00015068,2]
[361023849,1747209039353,-2451.01,0.00015068,2]
[361023851,1747209039362,-400.0,0.00015068,2]
[361023853,1747209039371,-1141.97,0.00015068,2]
[361023855,1747209039382,-400.0,0.00015068,2]
[361023857,1747209039392,-400.0,0.00015068,2]
[361023859,1747209039401,-590.5,0.00015068,2]
[361023861,1747209039413,-400.0,0.00015068,2]
[361023863,1747209039424,-400.0,0.00015068,2]
[361023865,1747209039434,-459.0,0.00015068,2]
[361023867,1747209039443,-400.0,0.00015068,2]
[361023869,1747209039453,-500.82779148,0.00015119,2]
[361023871,1747209039463,-500.0,0.00015119,2]
[361023873,1747209039472,-500.0,0.00015119,2]
[361023875,1747209039481,-500.0,0.0001513,2]
[361023877,1747209039492,-502.93316998,0.0001513,2]
[361023879,1747209039501,-500.0,0.0001513,2]
[361023881,1747209039511,-500.0,0.0001513,2]
[361023883,1747209039520,-500.0,0.0001513,2]
[361023885,1747209039530,-500.52088859,0.0001513,2]
[361023887,1747209039540,-506.46803802,0.0001513,2]
[361023889,1747209039550,-535.29991143,0.0001513,2]
[361023891,1747209039560,-500.0,0.0001513,2]
[361023893,1747209039569,-370.53612329,0.0001514,2]
[361023895,1747209039579,-500.0,0.0001514,2]
[361023897,1747209039589,-500.0,0.0001514,2]
[361023899,1747209039599,-500.0,0.0001514,2]
[361023901,1747209039608,-159.31855165,0.0001514,2]
[361023903,1747209039618,-500.0,0.0001514,2]
[361023905,1747209039628,-500.0,0.0001514,2]
[361023907,1747209039637,-614.82456227,0.0001514,2]
[361023909,1747209039647,-500.0,0.0001514,2]
[361023911,1747209039657,-500.0,0.0001514,2]
[361023913,1747209039666,-500.0,0.0001514,2]
[361023915,1747209039676,-500.0,0.0001514,2]
[361023917,1747209039686,-500.79125506,0.0001514,2]
[361023919,1747209039695,-503.52803663,0.0001514,2]
[361023921,1747209039705,-504.66284498,0.0001514,2]
[361023923,1747209039715,-458.61698756,0.0001514,2]
[361023925,1747209039724,-500.0,0.0001514,2]
[361023927,1747209039733,-500.0,0.0001514,2]
[361023929,1747209039743,-500.0,0.0001514,2]
[361023931,1747209039753,-504.13823928,0.0001514,2]
[361023933,1747209039763,-500.0,0.0001514,2]
[361023935,1747209039771,-500.0,0.0001514,2]
[361023937,1747209039781,-503.92992435,0.00015144,2]
[361023939,1747209039790,-441.4359222,0.00015144,2]
[361023941,1747209039800,-500.0,0.00015144,2]
[361023943,1747209039810,-500.0,0.00015144,2]
[361023945,1747209039820,-469.80533454,0.00015171,2]
[361023947,1747209039830,-504.21426968,0.00015171,2]
[361023948,1747209039839,-500.0,0.00015171,2]
[361023950,1747209039848,-501.28372876,0.00015171,2]
[361023952,1747209039858,-500.0,0.00015171,2]
[361023954,1747209039868,-500.63100852,0.00015171,2]
[361023955,1747209039878,-501.08252237,0.00015175,2]
[361023956,1747209039887,-443.88282598,0.00015175,2]
[361023958,1747209039897,-500.0,0.00015191,2]
[361023960,1747209039907,-358.53877274,0.00015191,2]
[361023962,1747209039916,-626.42609536,0.00015191,2]
[361023964,1747209039926,-156.0,0.000152,2]
[361023966,1747209039936,-10138.52019547,0.0001521,2]
[361023968,1747209039946,-501.66790532,0.00015211,2]
[361023970,1747209039956,-500.0,0.00015212,2]
[361023972,1747209039965,-500.0,0.00015212,2]
[361023973,1747209039975,-500.0,0.00015212,2]
[361023974,1747209039985,-500.47502872,0.00015212,2]
[361023975,1747209039994,-500.0,0.00015212,2]
[361023976,1747209040004,-500.0,0.00015212,2]
[361023977,1747209040014,-500.0,0.00015265,2]
[361023978,1747209040023,-501.28854031,0.00015265,2]
[361023979,1747209040033,-500.0,0.00015267,2]
[361023980,1747209040043,-151.0,0.000153,2]
[361023981,1747209040053,-151.0,0.000153,2]
[361023982,1747209040062,-5365.48334944,0.00015332,2]
[361023983,1747209040071,-297.44693426,0.00015341,2]
[361023984,1747209040081,-400.0,0.00015342,2]
[361023985,1747209040090,-400.0,0.00015342,2]
[361023986,1747209040099,-400.0,0.00015342,2]
[361023987,1747209040109,-400.0,0.00015342,2]
[361023988,1747209040118,-400.0,0.00015342,2]
[361023989,1747209040128,-400.0,0.00015342,2]
[361023990,1747209040138,-400.0,0.00015342,2]
[361023991,1747209040148,-400.0,0.00015342,2]
[361023992,1747209040157,-400.0,0.00015342,2]
[361023993,1747209040166,-400.0,0.00015342,2]
[361023995,1747209040176,-3957.16,0.00015342,2]
[361023996,1747209040193,-400.0,0.00015342,2]
[361023997,1747209040203,-486.97,0.00015342,2]
[361023998,1747209040213,-2072.03,0.00015342,2]
[361023999,1747209040222,-927.72,0.00015342,2]
[361024000,1747209040232,-800.94,0.00015342,2]
[361024001,1747209040241,-400.0,0.00015342,2]
[361024002,1747209040251,-400.0,0.00015342,2]
[361024003,1747209040260,-400.0,0.00015342,2]
[361024004,1747209040269,-517.27490956,0.00015342,2]
[361024006,1747209040279,-400.0,0.00015342,2]
[361024007,1747209040288,-231.09924291,0.00015342,2]
[361024008,1747209040297,-447.59,0.00015342,2]
[361024009,1747209040307,-562.84,0.00015342,2]
[361024010,1747209040316,-400.0,0.00015342,2]
[361024011,1747209040449,-325.36262229,0.00015342,2]
[361024012,1747209040460,-1114.07,0.00015342,2]
[361024013,1747209040469,-400.0,0.00015342,2]
[361024014,1747209040479,-400.0,0.00015342,2]
[361024015,1747209040490,-400.0,0.00015342,2]
[361024016,1747209040499,-400.0,0.00015342,2]
[361024017,1747209040509,-3312.91,0.00015342,2]
[361024018,1747209040519,-400.0,0.00015342,2]
[361024019,1747209040531,-400.0,0.00015342,2]
[361024020,1747209040542,-560.27,0.00015342,2]
[361024021,1747209040551,-400.0,0.00015342,2]
[361024022,1747209040560,-482.29,0.00015342,2]
[361024023,1747209040570,-400.0,0.00015342,2]
[361024024,1747209040580,-400.0,0.00015342,2]
[361024025,1747209040590,-434.97,0.00015342,2]
[361024026,1747209040600,-400.0,0.00015342,2]
[361024027,1747209040610,-400.0,0.00015342,2]
[361024028,1747209040619,-431.43,0.00015342,2]
[361024029,1747209040629,-486.32,0.00015342,2]
[361024031,1747209040638,-400.0,0.00015342,2]
[361024033,1747209040647,-2451.01,0.00015342,2]
[361024035,1747209040657,-400.0,0.00015342,2]
[361024037,1747209040666,-1141.97,0.00015342,2]
[361024039,1747209040675,-400.0,0.00015342,2]
[361024041,1747209040687,-400.0,0.00015342,2]
[361024043,1747209040696,-590.5,0.00015342,2]
[361024045,1747209040706,-400.0,0.00015342,2]
[361024047,1747209040715,-400.0,0.00015342,2]
[361024048,1747209040725,-459.0,0.00015342,2]
[361024050,1747209040735,-400.0,0.00015342,2]
[361024052,1747209040744,-500.0,0.00015375,2]
[361024055,1747209040754,-215.0738,0.00015393,2]
[361024057,1747209040763,-823.0,0.0001553,2]
[361024059,1747209040773,-300.0,0.0001553,2]
[361024061,1747209040782,-151.0,0.000156,2]
[361024062,1747209040791,-151.0,0.000156,2]
[361024064,1747209040800,-400.0,0.00015616,2]
[361024066,1747209040810,-400.0,0.00015616,2]
[361024068,1747209040819,-400.0,0.00015616,2]
[361024071,1747209040829,-163.68,0.00015616,2]
[361024073,1747209040839,-400.0,0.00015616,2]
[361024074,1747209040849,-400.0,0.00015616,2]
[361024076,1747209040858,-400.0,0.00015616,2]
[361024078,1747209040867,-400.0,0.00015616,2]
[361024080,1747209040877,-298.89552213,0.00015616,2]
[361024082,1747209040887,-400.0,0.00015616,2]
[361024084,1747209040896,-3957.16,0.00015616,2]
[361024086,1747209040906,-400.0,0.00015616,2]
[361024088,1747209040916,-486.97,0.00015616,2]
[361024090,1747209040925,-2072.03,0.00015616,2]
[361024092,1747209040936,-927.72,0.00015616,2]
[361024094,1747209040946,-800.94,0.00015616,2]
[361024096,1747209040956,-400.0,0.00015616,2]
[361024098,1747209040965,-400.0,0.00015616,2]
[361024100,1747209040975,-400.0,0.00015616,2]
[361024102,1747209040984,-400.0,0.00015616,2]
[361024104,1747209040993,-562.84,0.00015616,2]
[361024106,1747209041003,-400.0,0.00015616,2]
[361024110,1747209041012,-1114.07,0.00015616,2]
[361024113,1747209041021,-400.0,0.00015616,2]
[361024115,1747209041031,-400.0,0.00015616,2]
[361024117,1747209041040,-400.0,0.00015616,2]
[361024119,1747209041050,-400.0,0.00015616,2]
[361024121,1747209041060,-3312.91,0.00015616,2]
[361024123,1747209041070,-400.0,0.00015616,2]
[361024125,1747209041079,-400.0,0.00015616,2]
[361024127,1747209041088,-560.27,0.00015616,2]
[361024129,1747209041098,-400.0,0.00015616,2]
[361024131,1747209041107,-482.29,0.00015616,2]
[361024133,1747209041116,-400.0,0.00015616,2]
[361024134,1747209041126,-400.0,0.00015616,2]
[361024136,1747209041135,-434.97,0.00015616,2]
[361024137,1747209041146,-400.0,0.00015616,2]
[361024138,1747209041155,-400.0,0.00015616,2]
[361024139,1747209041164,-431.43,0.00015616,2]
[361024141,1747209041174,-486.32,0.00015616,2]
[361024143,1747209041185,-400.0,0.00015616,2]
[361024145,1747209041195,-2451.01,0.00015616,2]
[361024147,1747209041205,-400.0,0.00015616,2]
[361024149,1747209041214,-1141.97,0.00015616,2]
[361024151,1747209041223,-400.0,0.00015616,2]
[361024153,1747209041233,-400.0,0.00015616,2]
[361024155,1747209041242,-590.5,0.00015616,2]
[361024157,1747209041251,-400.0,0.00015616,2]
[361024159,1747209041260,-400.0,0.00015616,2]
[361024161,1747209041270,-459.0,0.00015616,2]
[361024163,1747209041279,-400.0,0.00015616,2]
[361024165,1747209041288,-500.0,0.00015667,2]
[361024167,1747209041298,-1000.02220585,0.00015667,2]
[361024169,1747209041307,-1013.55715915,0.00015678,2]
[361024171,1747209041317,-1000.0,0.00015678,2]
[361024173,1747209041326,-1000.0,0.00015678,2]
[361024175,1747209041340,-1001.84438943,0.00015678,2]
[361024177,1747209041349,-1000.0,0.00015678,2]
[361024179,1747209041359,-197.27650151,0.00015688,2]
[361024181,1747209041368,-524.82901603,0.00015688,2]
[361024183,1747209041378,-1000.0,0.00015688,2]
[361024185,1747209041388,-466.83389475,0.00015688,2]
[361024187,1747209041397,-507.41963344,0.00015688,2]
[361024189,1747209041407,-1000.0,0.00015688,2]
[361024191,1747209041417,-1145.84252312,0.00015688,2]
[361024193,1747209041427,-1000.0,0.00015688,2]
[361024195,1747209041438,-1000.0,0.00015688,2]
[361024197,1747209041448,-1000.0,0.00015688,2]
[361024199,1747209041457,-1000.0,0.00015688,2]
[361024201,1747209041467,-596.32485293,0.00015692,2]
[361024203,1747209041476,-2700.0,0.000157,2]
[361024205,1747209041486,-1000.0,0.00015719,2]
[361024208,1747209041495,-504.12449439,0.00015719,2]
[361024210,1747209041505,-1000.0,0.00015739,2]
[361024211,1747209041514,-1000.0,0.0001576,2]
[361024212,1747209041523,-1000.0,0.0001576,2]
[361024213,1747209041533,-737.35494314,0.0001576,2]
[361024214,1747209041543,-1000.0,0.0001576,2]
[361024215,1747209041551,-1000.0,0.0001576,2]
[361024216,1747209041561,-10138.52019547,0.00015762,2]
[361024217,1747209041570,-500.0,0.00015815,2]
[361024218,1747209041579,-400.0,0.0001589,2]
[361024219,1747209041589,-400.0,0.0001589,2]
[361024220,1747209041598,-400.0,0.0001589,2]
[361024221,1747209041607,-400.0,0.0001589,2]
[361024222,1747209041617,-400.0,0.0001589,2]
[361024223,1747209041626,-400.0,0.0001589,2]
[361024224,1747209041636,-388.96,0.0001589,2]
[361024225,1747209041646,-400.0,0.0001589,2]
[361024226,1747209041656,-3957.16,0.0001589,2]
[361024227,1747209041666,-400.0,0.0001589,2]
[361024228,1747209041675,-486.97,0.0001589,2]
[361024229,1747209041687,-2072.03,0.0001589,2]
[361024230,1747209041696,-927.72,0.0001589,2]
[361024231,1747209041706,-800.94,0.0001589,2]
[361024232,1747209041715,-400.0,0.0001589,2]
[361024233,1747209041724,-400.0,0.0001589,2]
[361024234,1747209041734,-220.81045599,0.0001589,2]
[361024235,1747209041744,-400.0,0.0001589,2]
[361024237,1747209041753,-562.84,0.0001589,2]
[361024239,1747209041763,-389.1568927,0.0001589,2]
[361024240,1747209041772,-1114.07,0.0001589,2]
[361024242,1747209041781,-400.0,0.0001589,2]
[361024244,1747209041790,-400.0,0.0001589,2]
[361024246,1747209041800,-3312.91,0.0001589,2]
[361024248,1747209041809,-537.42,0.0001589,2]
[361024250,1747209041818,-560.27,0.0001589,2]
[361024252,1747209041828,-400.0,0.0001589,2]
[361024255,1747209041837,-482.29,0.0001589,2]
[361024256,1747209041846,-400.0,0.0001589,2]
[361024259,1747209041857,-400.0,0.0001589,2]
[361024261,1747209041866,-434.97,0.0001589,2]
[361024263,1747209041875,-400.0,0.0001589,2]
[361024265,1747209041885,-431.43,0.0001589,2]
[361024267,1747209041895,-486.32,0.0001589,2]
[361024269,1747209041904,-400.0,0.0001589,2]
[361024271,1747209041914,-2451.01,0.0001589,2]
[361024273,1747209041925,-400.0,0.0001589,2]
[361024275,1747209041936,-1141.97,0.0001589,2]
[361024277,1747209041945,-400.0,0.0001589,2]
[361024279,1747209041955,-400.0,0.0001589,2]
[361024281,1747209041964,-590.5,0.0001589,2]
[361024283,1747209041974,-400.0,0.0001589,2]
[361024285,1747209041983,-400.0,0.0001589,2]
[361024287,1747209041993,-459.0,0.0001589,2]
[361024289,1747209042003,-400.0,0.0001589,2]
[361024291,1747209042012,-5365.48334944,0.0001591,2]
[361024293,1747209042021,-561.69421384,0.00015923,2]
[361024295,1747209042030,-3000.0,0.00016,2]
[361024297,1747209042040,-151.0,0.00016,2]
[361024299,1747209042049,-151.0,0.00016,2]
[361024301,1747209042058,-3000.0,0.0001601,2]
[361024303,1747209042068,-3000.0,0.0001602,2]
[361024305,1747209042077,-3000.0,0.0001603,2]
[361024307,1747209042087,-3000.0,0.0001604,2]
[361024309,1747209042096,-3000.0,0.0001605,2]
[361024311,1747209042105,-3000.0,0.0001606,2]
[361024313,1747209042115,-3000.0,0.0001607,2]
[361024315,1747209042124,-3000.0,0.0001608,2]
[361024317,1747209042133,-3000.0,0.0001609,2]
[361024319,1747209042143,-3000.0,0.000161,2]
[361024321,1747209042153,-3000.0,0.0001611,2]
[361024323,1747209042162,-3000.0,0.0001612,2]
[361024325,1747209042171,-3000.0,0.0001613,2]
[361024327,1747209042181,-3000.0,0.0001614,2]
[361024329,1747209042190,-3000.0,0.0001615,2]
[361024331,1747209042200,-5492.836063,0.0001616,2]
[361024333,1747209042209,-400.0,0.00016164,2]
[361024335,1747209042219,-400.0,0.00016164,2]
[361024337,1747209042228,-400.0,0.00016164,2]
[361024339,1747209042238,-400.0,0.00016164,2]
[361024341,1747209042247,-400.0,0.00016164,2]
[361024343,1747209042256,-400.0,0.00016164,2]
[361024345,1747209042266,-3957.16,0.00016164,2]
[361024347,1747209042275,-400.0,0.00016164,2]
[361024349,1747209042285,-486.97,0.00016164,2]
[361024351,1747209042294,-2072.03,0.00016164,2]
[361024353,1747209042304,-927.72,0.00016164,2]
[361024355,1747209042314,-800.94,0.00016164,2]
[361024357,1747209042324,-400.0,0.00016164,2]
[361024359,1747209042340,-400.0,0.00016164,2]
[361024361,1747209042349,-400.0,0.00016164,2]
[361024363,1747209042359,-562.84,0.00016164,2]
[361024365,1747209042368,-1114.07,0.00016164,2]
[361024367,1747209042379,-400.0,0.00016164,2]
[361024368,1747209042388,-400.0,0.00016164,2]
[361024370,1747209042398,-3312.91,0.00016164,2]
[361024372,1747209042409,-560.27,0.00016164,2]
[361024374,1747209042418,-400.0,0.00016164,2]
[361024376,1747209042427,-482.29,0.00016164,2]
[361024378,1747209042439,-400.0,0.00016164,2]
[361024380,1747209042448,-400.0,0.00016164,2]
[361024382,1747209042458,-434.97,0.00016164,2]
[361024384,1747209042467,-400.0,0.00016164,2]
[361024386,1747209042477,-431.43,0.00016164,2]
[361024388,1747209042487,-486.32,0.00016164,2]
[361024390,1747209042496,-413.00361278,0.00016164,2]
[361024392,1747209042505,-2451.01,0.00016164,2]
[361024394,1747209042514,-460.84905736,0.00016164,2]
[361024395,1747209042524,-1141.97,0.00016164,2]
[361024397,1747209042533,-488.28,0.00016164,2]
[361024399,1747209042542,-400.0,0.00016164,2]
[361024401,1747209042552,-590.5,0.00016164,2]
[361024403,1747209042562,-400.0,0.00016164,2]
[361024405,1747209042571,-400.0,0.00016164,2]
[361024407,1747209042581,-459.0,0.00016164,2]
[361024409,1747209042591,-400.0,0.00016164,2]
[361024411,1747209042600,-1511.73118152,0.00016226,2]
[361024413,1747209042609,-1500.0,0.00016226,2]
[361024415,1747209042618,-1503.97737519,0.00016226,2]
[361024417,1747209042627,-1146.590113,0.00016236,2]
[361024419,1747209042636,-1500.0,0.00016236,2]
[361024421,1747209042645,-1500.0,0.00016236,2]
[361024423,1747209042654,-1500.0,0.00016236,2]
[361024425,1747209042664,-273.83962421,0.00016236,2]
[361024427,1747209042673,-1500.0,0.00016236,2]
[361024429,1747209042683,-1500.0,0.00016267,2]
[361024431,1747209042692,-1500.0,0.00016287,2]
[361024433,1747209042702,-151.0,0.000163,2]
[361024435,1747209042712,-151.0,0.000163,2]
[361024437,1747209042721,-1108.16801508,0.00016308,2]
[361024439,1747209042731,-1323.89826471,0.00016308,2]
[361024441,1747209042740,-1002.03255151,0.00016308,2]
[361024443,1747209042750,-1500.0,0.00016308,2]
[361024445,1747209042759,-10138.52019547,0.00016314,2]
[361024447,1747209042768,-400.0,0.00016438,2]
[361024449,1747209042779,-400.0,0.00016438,2]
[361024451,1747209042790,-400.0,0.00016438,2]
[361024453,1747209042799,-400.0,0.00016438,2]
[361024455,1747209042809,-400.0,0.00016438,2]
[361024457,1747209042818,-447.36,0.00016438,2]
[361024459,1747209042828,-3957.16,0.00016438,2]
[361024461,1747209042837,-373.78,0.00016438,2]
[361024463,1747209042847,-486.97,0.00016438,2]
[361024465,1747209042856,-1355.28832494,0.00016438,2]
[361024532,1747209043442,-927.72,0.00016438,2]
[361024534,1747209043451,-400.0,0.00016438,2]
[361024536,1747209043460,-400.0,0.00016438,2]
[361024538,1747209043470,-400.0,0.00016438,2]
[361024540,1747209043479,-562.84,0.00016438,2]
[361024542,1747209043489,-1114.07,0.00016438,2]
[361024544,1747209043498,-400.0,0.00016438,2]
[361024546,1747209043508,-500.0,0.00016438,2]
[361024548,1747209043517,-500.0,0.00016438,2]
[361024550,1747209043526,-475.38514146,0.00016438,2]
[361024551,1747209043535,-500.0,0.00016438,2]
[361024553,1747209043544,-500.0,0.00016438,2]
[361024555,1747209043554,-500.0,0.00016438,2]
[361024557,1747209043562,-500.0,0.00016438,2]
[361024559,1747209043572,-500.0,0.00016438,2]
[361024561,1747209043580,-500.0,0.00016438,2]
[361024563,1747209043588,-500.0,0.00016438,2]
[361024565,1747209043597,-400.0,0.00016438,2]
[361024567,1747209043605,-500.0,0.00016438,2]
[361024569,1747209043613,-500.0,0.00016438,2]
[361024571,1747209043623,-500.0,0.00016438,2]
[361024573,1747209043633,-3312.91,0.00016438,2]
[361024575,1747209043642,-500.0,0.00016438,2]
[361024577,1747209043652,-560.27,0.00016438,2]
[361024579,1747209043662,-544.72,0.00016438,2]
[361024581,1747209043671,-482.29,0.00016438,2]
[361024583,1747209043681,-400.0,0.00016438,2]
[361024585,1747209043690,-400.0,0.00016438,2]
[361024587,1747209043700,-434.97,0.00016438,2]
[361024589,1747209043709,-400.0,0.00016438,2]
[361024591,1747209043719,-431.43,0.00016438,2]
[361024593,1747209043728,-486.32,0.00016438,2]
[361024596,1747209043738,-2451.01,0.00016438,2]
[361024598,1747209043748,-1141.97,0.00016438,2]
[361024600,1747209043758,-400.0,0.00016438,2]
[361024602,1747209043767,-590.5,0.00016438,2]
[361024604,1747209043777,-400.0,0.00016438,2]
[361024606,1747209043786,-400.0,0.00016438,2]
[361024608,1747209043796,-459.0,0.00016438,2]
[361024610,1747209043805,-400.0,0.00016438,2]
[361024612,1747209043815,-151.0,0.00016438,2]
[361024614,1747209043826,-151.0,0.00016438,2]
[361024616,1747209043835,-151.0,0.00016438,2]
[361024618,1747209043844,-151.0,0.00016438,2]
[361024620,1747209043854,-151.0,0.00016438,2]
[361024622,1747209043863,-151.0,0.00016438,2]
[361024624,1747209043873,-151.0,0.00016438,2]
[361024626,1747209043882,-151.0,0.00016438,2]
[361024628,1747209043892,-151.0,0.00016438,2]
[361024630,1747209043901,-151.0,0.00016438,2]
[361024632,1747209043911,-151.0,0.00016438,2]
[361024634,1747209043920,-151.0,0.00016438,2]
[361024636,1747209043929,-151.0,0.00016438,2]
[361024638,1747209043940,-151.0,0.00016438,2]
[361024640,1747209043950,-151.0,0.00016438,2]
[361024642,1747209043961,-151.0,0.00016438,2]